fUSD/lending_fUSD_20260221
["ID","MTS","AMOUNT","RATE_DAILY","PERIOD"]
[406256628,1771663839154,-500.0,0.00015899,2]
[406256630,1771663839163,-505.36393545,0.00015899,2]
[406256632,1771663839172,-500.0,0.00015899,2]
[406256634,1771663839181,-500.0,0.00015899,2]
[406256635,1771663839190,-274.81553287,0.00015899,2]
[406256637,1771663839200,-503.02114283,0.00015899,2]
[406256639,1771663839209,-500.0,0.00015899,2]
[406256641,1771663839218,-504.39683652,0.00015899,2]
[406256642,1771663839227,-348.04746549,0.00015899,2]
[406256644,1771663839237,-192.37895213,0.00015899,2]
[406256646,1771663839246,-453.72236959,0.00015899,2]
[406256648,1771663839255,-500.0,0.00015899,2]
[406256649,1771663839264,-500.0,0.00015899,2]
[406256651,1771663839273,-500.0,0.00015899,2]
[406256653,1771663839282,-500.0,0.00015899,2]
[406256654,1771663839291,-500.0,0.00015899,2]
[406256655,1771663839299,-500.0,0.00015899,2]
[406256656,1771663839308,-500.0,0.00015899,2]
[406256657,1771663839317,-500.0,0.00015899,2]
[406256658,1771663839326,-500.0,0.00015899,2]
[406256659,1771663839339,-500.0,0.00015899,2]
[406256660,1771663839348,-500.0,0.00015899,2]
[406256661,1771663839357,-500.0,0.00015899,2]
[406256662,1771663839366,-500.0,0.00015899,2]
[406256663,1771663839375,-500.0,0.00015899,2]
[406256664,1771663839385,-2346.81250728,0.0001596,2]
[406256665,1771663839394,-5000.0,0.0001597,2]
[406256666,1771663839403,-600.0,0.0001597,2]
[406256667,1771663839412,-300.0,0.0001597,2]
[406256668,1771663839422,-250.0,0.0001597,2]
[406256669,1771663839431,-528.0,0.00016,2]
[406256670,1771663839440,-500.0,0.00016086,2]
[406256671,1771663839449,-9999.99,0.00016116,2]
[406256672,1771663839458,-1685.31341263,0.00016129,2]
[406256673,1771663839467,-31454.17832708,0.0001614,2]
[406256674,1771663839476,-1680.0,0.00016169,2]
[406256675,1771663839485,-24689.64163745,0.00016196,2]
[406256676,1771663839495,-600.0,0.00016209,2]
[406256677,1771663839504,-297.09,0.00016328,2]
[406256678,1771663839512,-150.17950014,0.00016358,2]
[406256679,1771663839521,-167.63388055,0.0001637,2]
[406256680,1771663839530,-227.92,0.00016438,2]
[406256681,1771663839540,-271.72,0.00016438,30]
[406256682,1771663839549,-545.79913084,0.00016438,2]
[406256683,1771663839561,-200.0,0.00016438,2]
[406256684,1771663839570,-31454.17832708,0.00016492,2]
[406256685,1771663839580,-24689.64163745,0.00016536,2]
[406256686,1771663839589,-1685.31341263,0.00016571,2]
[406256687,1771663839599,-271.81377819,0.00016589,2]
[406256688,1771663839610,-282.24849736,0.00016655,2]
[406256689,1771663839619,-167.27,0.00016712,2]
[406256690,1771663839629,-31454.17832708,0.00016844,2]
[406256691,1771663839638,-24689.64163745,0.00016877,2]
[406256692,1771663839648,-167.63388055,0.0001688,2]
[406256693,1771663839657,-681.03393305,0.0001688,2]
[406256694,1771663839667,-433.0,0.00016972,2]
[406256695,1771663839676,-200.0,0.00016986,2]
[406256696,1771663839685,-300.0,0.00017,2]
[406256697,1771663839694,-1685.31341263,0.00017014,2]
[406256698,1771663839703,-1000.0,0.00017076,2]
[406256699,1771663839712,-32860.742,0.00017076,2]
[406256700,1771663839721,-31454.17832708,0.00017196,2]
[406256701,1771663839730,-24689.64163745,0.00017218,2]
[406256702,1771663839739,-169.93,0.00017251,2]
[406256703,1771663839748,-167.63388055,0.0001739,2]
[406256704,1771663839757,-1685.31341263,0.00017457,2]
[406256705,1771663839766,-200.0,0.00017534,2]
[406256706,1771663839775,-31454.17832708,0.00017548,2]
[406256707,1771663839784,-24689.64163745,0.00017559,2]
[406256708,1771663839793,-230.0,0.00017608,2]
[406256709,1771663839802,-2600.0,0.000177,6]
[406256710,1771663839811,-2351.0,0.00017786,2]
[406256711,1771663839820,-2600.0,0.000178,6]
[406256712,1771663839828,-281.0,0.00017803,2]
[406256713,1771663839837,-912.64296774,0.00017808,2]
[406256714,1771663839846,-912.64296774,0.00017808,2]
[406256715,1771663839856,-912.64296774,0.00017808,2]
[406256716,1771663839864,-912.64296774,0.00017808,2]
[406256717,1771663839873,-912.64296774,0.00017808,2]
[406256718,1771663839882,-912.64296774,0.00017808,2]
[406256719,1771663839891,-912.64296774,0.00017808,2]
[406256720,1771663839900,-912.64296774,0.00017808,2]
[406256721,1771663839909,-912.64296774,0.00017808,2]
[406256722,1771663839920,-912.64296774,0.00017808,2]
[406256723,1771663839931,-912.64296774,0.00017808,2]
[406256724,1771663839940,-912.64296774,0.00017808,2]
[406256725,1771663839949,-912.64296774,0.00017808,2]
[406256726,1771663839958,-912.64296774,0.00017808,2]
[406256728,1771663839968,-912.64296774,0.00017808,2]
[406256730,1771663839978,-912.64296774,0.00017808,2]
[406256731,1771663839988,-912.64296774,0.00017808,2]
[406256732,1771663839997,-912.64296774,0.00017808,2]
[406256733,1771663840006,-912.64296774,0.00017808,2]
[406256734,1771663840015,-912.64296774,0.00017808,2]
[406256735,1771663840024,-912.64296774,0.00017808,2]
[406256736,1771663840034,-1317.02311712,0.00017808,2]
[406256737,1771663840043,-1317.02311712,0.00017808,2]
[406256738,1771663840053,-1317.02311712,0.00017808,2]
[406256739,1771663840062,-1317.02311712,0.00017808,2]
[406256740,1771663840071,-1317.02311712,0.00017808,2]
[406256741,1771663840080,-1317.02311712,0.00017808,2]
[406256742,1771663840092,-1317.02311712,0.00017808,2]
[406256743,1771663840101,-800.0,0.00017808,2]
[406256744,1771663840110,-167.63388055,0.000179,2]
[406256745,1771663840119,-681.03393305,0.000179,2]
[406256746,1771663840129,-24689.64163745,0.000179,2]
[406256747,1771663840138,-31454.17832708,0.000179,2]
[406256748,1771663840147,-2600.0,0.000179,6]
[406256749,1771663840155,-1685.31341263,0.000179,2]
[406256750,1771663840165,-200.0,0.00017937,2]
[406256751,1771663840176,-162.93997784,0.00017973,2]
[406256752,1771663840186,-168.71198045,0.00017973,2]
[406256753,1771663840195,-501.05660533,0.00017973,2]
[406256754,1771663840203,-501.38512914,0.00017973,2]
[406256755,1771663840213,-500.41653761,0.00017973,2]
[406256756,1771663840222,-165.27434071,0.00017973,2]
[406256757,1771663840231,-246.364609,0.00017973,2]
[406256758,1771663840239,-503.18537404,0.00017973,2]
[406256759,1771663840248,-500.0,0.00017973,2]
[406256760,1771663840257,-230.31122448,0.00017973,2]
[406256761,1771663840266,-454.60115488,0.00017973,2]
[406256762,1771663840275,-167.41603795,0.00017973,2]
[406256763,1771663840285,-453.19896023,0.00017973,2]
[406256764,1771663840294,-493.47361044,0.00017973,2]
[406256765,1771663840303,-501.37835228,0.00017973,2]
[406256766,1771663840311,-184.37223932,0.00017973,2]
[406256767,1771663840320,-166.88843163,0.00017973,2]
[406256768,1771663840329,-500.0,0.00017973,2]
[406256769,1771663840338,-501.02670572,0.00017973,2]
[406256770,1771663840350,-502.63635996,0.00017973,2]
[406256771,1771663840359,-500.0,0.00017973,2]
[406256772,1771663840368,-500.49256887,0.00017973,2]
[406256773,1771663840376,-500.0,0.00017973,2]
[406256774,1771663840385,-164.4744294,0.00017973,2]
[406256775,1771663840394,-500.0,0.00017973,2]
[406256776,1771663840404,-500.0,0.00017973,2]
[406256777,1771663840413,-500.0,0.00017973,2]
[406256778,1771663840422,-503.58870457,0.00017973,2]
[406256779,1771663840431,-500.8784215,0.00017973,2]
[406256780,1771663840441,-500.0,0.00017973,2]
[406256781,1771663840450,-500.0,0.00017973,2]
[406256782,1771663840459,-501.82753949,0.00017973,2]
[406256783,1771663840469,-590.39410538,0.00017973,2]
[406256784,1771663840478,-514.56546432,0.00017973,2]
[406256785,1771663840487,-500.0,0.00017973,2]
[406256786,1771663840495,-500.18211712,0.00017973,2]
[406256787,1771663840505,-39307.4765963,0.00017978,2]
[406256788,1771663840513,-3046.8215481,0.00017978,2]
[406256789,1771663840523,-104803.9066168,0.00017978,2]
[406256790,1771663840532,-330.0,0.00017981,2]
[406256791,1771663840541,-723.64259746,0.0001799,2]
[406256792,1771663840550,-300.0,0.00017999,2]
[406256793,1771663840562,-666.0,0.00017999,2]
[406256794,1771663840571,-300.0,0.00017999,2]
[406256795,1771663840581,-300.0,0.00017999,2]
[406256796,1771663840590,-150.0,0.00017999,2]
[406256797,1771663840600,-150.0,0.00017999,2]
[406256798,1771663840610,-179.98541448,0.00017999,2]
[406256799,1771663840622,-1731561.9797428,0.00018,2]
[406256800,1771663840640,-4282.22884414,0.00018,2]
[406256801,1771663840651,-340.7948031,0.00018,2]
[406256802,1771663840662,-2187.60012278,0.00018,2]
[406256803,1771663840676,-1563.4239597,0.00018,2]
[406256804,1771663840746,-1801533.01094998,0.00018,2]
[406256814,1771663842764,-101.90744767,0.00018,2]
[406256815,1771663842891,-475.93256438,0.00018,2]
[406256816,1771663842902,-1968.80000001,0.00018,2]
[406256822,1771663845306,-9135.45457606,0.00018,2]
[406256826,1771663845360,-1779.5,0.00018,2]
[406256829,1771663914495,500.0,0.00014,2]
[406256830,1771663926835,165.0,0.00014,2]
[406256833,1771663977288,-300.0,0.00014861,2]
[406256834,1771663992611,165.0,0.00014861,2]
[406256835,1771664022939,-518.82465,0.00014862,2]
[406256836,1771664022966,-500.0,0.00014862,2]
[406256837,1771664022993,-500.0,0.00014862,2]
[406256838,1771664023020,-500.0,0.00014862,2]
[406256839,1771664023045,-500.0,0.00014862,2]
[406256840,1771664023072,-500.0,0.00014862,2]
[406256841,1771664023111,-500.0,0.00014862,2]
[406256842,1771664023138,-452.51165324,0.00014862,2]
[406256843,1771664023164,-500.0,0.00014862,2]
[406256844,1771664023189,-500.0,0.00014862,2]
[406256845,1771664025912,-500.0,0.00014862,2]
[406256846,1771664025938,-500.0,0.00014862,2]
[406256847,1771664025964,-500.0,0.00014862,2]
[406256848,1771664025989,-500.0,0.00014862,2]
[406256849,1771664026016,-500.0,0.00014862,2]
[406256850,1771664026043,-300.0,0.00015898,2]
[406256851,1771664026069,-500.0,0.00015899,2]
[406256852,1771664026095,-500.0,0.00015899,2]
[406256853,1771664026121,-500.0,0.00015899,2]
[406256854,1771664026150,-500.0,0.00015899,2]
[406256855,1771664031946,-500.0,0.00015899,2]
[406256856,1771664031972,-500.0,0.00015899,2]
[406256857,1771664031998,-500.0,0.00015899,2]
[406256858,1771664032026,-500.0,0.00015899,2]
[406256859,1771664032053,-500.0,0.00015899,2]
[406256860,1771664032079,-500.0,0.00015899,2]
[406256861,1771664032105,-500.0,0.00015899,2]
[406256862,1771664032132,-500.0,0.00015899,2]
[406256863,1771664032159,-500.0,0.00015899,2]
[406256864,1771664032185,-500.0,0.00015899,2]
[406256865,1771664035107,-500.0,0.00015899,2]
[406256866,1771664035133,-500.0,0.00015899,2]
[406256867,1771664035158,-500.0,0.00015899,2]
[406256868,1771664035184,-500.0,0.00015899,2]
[406256869,1771664035216,-627.47385881,0.00015899,2]
[406256870,1771664035251,-500.0,0.00015899,2]
[406256871,1771664035282,-500.0,0.00015899,2]
[406256872,1771664035310,-500.0,0.00015899,2]
[406256873,1771664035338,-204.27737629,0.00015899,2]
[406256874,1771664035366,-500.0,0.00015899,2]
[406256875,1771664035538,-11.35327008,0.00015899,2]
[406256876,1771664037355,500.0,0.00014,2]
[406256877,1771664038156,-488.64672992,0.00015899,2]
[406256878,1771664038183,-500.0,0.00015899,2]
[406256879,1771664038210,-564.4785355,0.00015899,2]
[406256880,1771664038237,-500.0,0.00015899,2]
[406256881,1771664038268,-500.0,0.00015899,2]
[406256882,1771664038294,-500.0,0.00015899,2]
[406256883,1771664038322,-500.0,0.00015899,2]
[406256884,1771664038351,-500.0,0.00015899,2]
[406256885,1771664038380,-513.53363328,0.00015899,2]
[406256886,1771664038407,-366.6922026,0.00015899,2]
[406256887,1771664038542,-133.3077974,0.00015899,2]
[406256888,1771664041086,-500.0,0.00015899,2]
[406256889,1771664041114,-500.0,0.00015899,2]
[406256890,1771664041145,-500.0,0.00015899,2]
[406256891,1771664041172,-500.0,0.00015899,2]
[406256892,1771664041198,-511.47956793,0.00015899,2]
[406256893,1771664047641,165.0,0.00015899,2]
[406256894,1771664050250,500.0,0.00014862,2]
[406256895,1771664050351,500.0,0.00014,2]
[406256896,1771664050494,516.24696625,0.00014862,2]
[406256897,1771664063677,500.0,0.00015,2]
[406256898,1771664069935,500.0,0.00014862,2]
[406256899,1771664070186,544.36077424,0.00014862,2]
[406256900,1771664076520,500.0,0.00015,2]
[406256901,1771664104995,162.0,0.00015899,2]
[406256902,1771664111694,165.0,0.00015899,2]
[406256903,1771664129917,173.0,0.00015,2]
[406256904,1771664172373,165.0,0.00015899,2]
[406256905,1771664189349,586.44312365,0.00015726,2]
[406256906,1771664189371,10000.01,0.00015726,2]
[406256907,1771664199087,-5022.95913586,0.00015726,2]
[406256908,1771664202123,-10000.01,0.00015726,2]
[406256909,1771664271485,-300.0,0.00015725,2]
[406256910,1771664271521,-9400.01,0.00015726,2]
[406256911,1771664272400,-10000.01,0.00015726,2]
[406256912,1771664272692,-10000.01,0.00015726,2]
[406256913,1771664273224,-10000.01,0.00015726,2]
[406256914,1771664273460,-10000.01,0.00015726,2]
[406256915,1771664273710,-10000.01,0.00015726,2]
[406256916,1771664273917,-10000.01,0.00015726,2]
[406256917,1771664274143,-10000.01,0.00015726,2]
[406256918,1771664288353,352.8517724,0.00015006,2]
[406256919,1771664332537,-1796.03695651,0.00015726,2]
[406256920,1771664332571,-6055.08431458,0.00015726,2]
[406256921,1771664332608,-352.8517724,0.00015726,2]
[406256922,1771664379721,503.02114283,0.00014862,2]
[406256923,1771664407119,162.0,0.00015726,2]
[406256924,1771664437882,500.0,0.00015625,2]
[406256936,1771664578678,-151.0,0.00015739,2]
[406256937,1771664578706,-151.0,0.00015739,2]
[406256938,1771664578733,-151.0,0.00015739,2]
[406256939,1771664578764,-151.0,0.00015739,2]
[406256940,1771664578790,-151.0,0.00015739,2]
[406256941,1771664578817,-200.0,0.00015739,2]
[406256942,1771664578844,-151.0,0.00015739,2]
[406256943,1771664578871,-151.0,0.00015739,2]
[406256944,1771664578901,-151.0,0.00015739,2]
[406256945,1771664578928,-151.0,0.00015739,2]
[406256946,1771664578955,-500.0,0.00015739,2]
[406256947,1771664578982,-151.0,0.00015739,2]
[406256948,1771664579008,-151.0,0.00015739,2]
[406256949,1771664579036,-151.0,0.00015739,2]
[406256950,1771664579066,-151.0,0.00015739,2]
[406256951,1771664579093,-151.0,0.00015739,2]
[406256952,1771664579123,-151.0,0.00015739,2]
[406256953,1771664579151,-151.0,0.00015739,2]
[406256954,1771664579177,-151.0,0.00015739,2]
[406256955,1771664579204,-500.0,0.00015739,2]
[406256956,1771664579235,-151.0,0.00015739,2]
[406256957,1771664579263,-500.0,0.00015739,2]
[406256958,1771664579290,-151.0,0.00015739,2]
[406256959,1771664579318,-362.01,0.00015739,2]
[406256960,1771664579436,-137.99,0.00015739,2]
[406256961,1771664579464,-151.0,0.00015739,2]
[406256962,1771664579491,-500.0,0.00015739,2]
[406256963,1771664579520,-500.0,0.00015739,2]
[406256964,1771664579547,-500.0,0.00015739,2]
[406256965,1771664579574,-500.0,0.00015739,2]
[406256966,1771664579600,-500.0,0.00015739,2]
[406256967,1771664579627,-500.0,0.00015739,2]
[406256968,1771664579658,-500.0,0.00015739,2]
[406256969,1771664579685,-500.0,0.00015739,2]
[406256970,1771664579712,-151.0,0.00015739,2]
[406256971,1771664579739,-151.0,0.00015739,2]
[406256972,1771664579772,-220.51483291,0.00015739,2]
[406256973,1771664579898,-377.00033418,0.00015739,2]
[406256974,1771664579925,-151.0,0.00015739,2]
[406256975,1771664579952,-151.0,0.00015739,2]
[406256976,1771664579979,-151.0,0.00015739,2]
[406256977,1771664580006,-151.0,0.00015739,2]
[406256978,1771664580034,-151.0,0.00015739,2]
[406256979,1771664580062,-151.0,0.00015739,2]
[406256980,1771664580091,-202.62533237,0.00015739,2]
[406256981,1771664580118,-151.0,0.00015739,2]
[406256982,1771664580146,-151.0,0.00015739,2]
[406256983,1771664580173,-151.0,0.00015739,2]
[406256984,1771664580202,-500.0,0.00015739,2]
[406256985,1771664580230,-500.0,0.00015739,2]
[406256986,1771664580259,-500.0,0.00015739,2]
[406256987,1771664580286,-500.0,0.00015739,2]
[406256988,1771664580312,-500.0,0.00015739,2]
[406256989,1771664580339,-500.0,0.00015739,2]
[406256990,1771664580468,-500.0,0.00015739,2]
[406256991,1771664580504,-500.0,0.00015739,2]
[406256992,1771664580533,-500.0,0.00015739,2]
[406256993,1771664580562,-500.0,0.00015739,2]
[406256994,1771664580594,-500.0,0.00015739,2]
[406256995,1771664580626,-523.67330146,0.00015747,2]
[406256996,1771664580657,-1200.0,0.00015747,2]
[406256997,1771664580692,-300.0,0.00015747,2]
[406256998,1771664580724,-300.0,0.00015747,2]
[406256999,1771664582220,-9946.67339708,0.00015748,2]
[406257000,1771664582301,-10000.01,0.00015748,2]
[406257001,1771664582314,-10000.01,0.00015748,2]
[406257002,1771664582328,-10000.01,0.00015748,2]
[406257003,1771664627719,-5000.0,0.00015638,2]
[406257004,1771664628782,-5000.0,0.00015638,2]
[406257005,1771664629725,-5000.0,0.00015638,2]
[406257006,1771664630569,-5000.0,0.00015638,2]
[406257007,1771664631490,-5000.0,0.00015638,2]
[406257008,1771664633072,-5000.0,0.00015638,2]
[406257009,1771664672347,-5000.0,0.00015638,2]
[406257010,1771664693391,-504.29987932,0.00015638,2]
[406257011,1771664693411,-151.0,0.00015645,2]
[406257012,1771664693433,-151.0,0.00015645,2]
[406257013,1771664693453,-500.0,0.00015647,2]
[406257014,1771664693475,-3693.70012068,0.00015648,2]
[406257015,1771664694013,-5000.0,0.00015648,2]
[406257016,1771664695346,-5000.0,0.00015648,2]
[406257017,1771664696748,-5000.0,0.00015648,2]
[406257018,1771664697272,-5000.0,0.00015648,2]
[406257019,1771664697729,-5000.0,0.00015648,2]
[406257020,1771664698244,-5000.0,0.00015648,2]
[406257021,1771664698765,-5000.0,0.00015648,2]
[406257022,1771664699497,-5000.0,0.00015648,2]
[406257023,1771664699809,-5000.0,0.00015648,2]
[406257024,1771664700261,-5000.0,0.00015648,2]
[406257025,1771664700961,-5000.0,0.00015648,2]
[406257026,1771664701135,-5000.0,0.00015648,2]
[406257027,1771664701640,-1200.0,0.00015647,2]
[406257028,1771664701662,-3800.0,0.00015648,2]
[406257029,1771664702096,-5000.0,0.00015648,2]
[406257030,1771664702603,-5000.0,0.00015648,2]
[406257031,1771664703129,-5000.0,0.00015648,2]
[406257032,1771664703592,-5000.0,0.00015648,2]
[406257033,1771664705233,-5000.0,0.00015648,2]
[406257034,1771664705546,-5000.0,0.00015648,2]
[406257035,1771664707022,-5000.0,0.00015648,2]
[406257036,1771664707508,-5000.0,0.00015648,2]
[406257037,1771664707840,-5000.0,0.00015648,2]
[406257038,1771664708282,-5000.0,0.00015648,2]
[406257039,1771664709841,-5000.0,0.00015648,2]
[406257040,1771664710303,-5000.0,0.00015648,2]
[406257041,1771664710630,-5000.0,0.00015648,2]
[406257042,1771664711106,-5000.0,0.00015648,2]
[406257043,1771664711530,-5000.0,0.00015648,2]
[406257044,1771664712038,-5000.0,0.00015648,2]
[406257045,1771664712324,-5000.0,0.00015648,2]
[406257046,1771664712771,-5000.0,0.00015648,2]
[406257047,1771664713119,-5000.0,0.00015648,2]
[406257048,1771664714096,-5000.0,0.00015648,2]
[406257049,1771664714924,-5000.0,0.00015648,2]
[406257050,1771664718388,-5000.0,0.00015648,2]
[406257051,1771664725487,-5000.0,0.00015648,2]
[406257052,1771664726054,-5000.0,0.00015648,2]
[406257053,1771664727445,-5000.0,0.00015648,2]
[406257054,1771664728119,-1588.34658663,0.00015548,2]
[406257055,1771664728144,-3411.65341337,0.00015648,2]
[406257056,1771664743998,5000.01,0.00012991,2]
[406257057,1771664744018,1859.44,0.00012991,2]
[406257058,1771664766727,150.0,0.00015141,7]
[406257059,1771664767479,271.665604,0.00015141,7]
[406257060,1771664768386,393.331208,0.00015141,7]
[406257061,1771664769142,514.996812,0.00015141,7]
[406257062,1771664769951,636.662417,0.00015141,7]
[406257063,1771664770970,758.328021,0.00015141,7]
[406257064,1771664771555,415.585938,0.00015141,7]
[406257065,1771664771576,464.407687,0.00015141,7]
[406257066,1771664772248,1001.659229,0.00015141,7]
[406257067,1771664773178,1123.324834,0.00015141,7]
[406257068,1771664773799,1244.990438,0.00015141,7]
[406257069,1771664792363,1000.0,0.00015309,2]
[406257070,1771664881673,-300.0,0.00015547,2]
[406257071,1771664881701,-300.0,0.00015547,2]
[406257072,1771664881729,-300.0,0.00015547,2]
[406257073,1771664910884,7272.47,0.0001503,2]
[406257074,1771664941760,300.0,0.00015547,2]
[406257075,1771664942339,300.0,0.00015547,2]
[406257076,1771664980964,327.54,0.00015547,2]
[406257077,1771664980984,8694.33,0.00015547,2]
[406257078,1771664994690,1305.68,0.00015448,2]
[406257079,1771664994711,7663.23104162,0.00015448,2]
[406257080,1771665001192,300.0,0.00015547,2]
[406257081,1771665001634,1200.0,0.00015547,2]
[406257082,1771665002574,218.17246063,0.00015448,2]
[406257083,1771665004685,618.60649775,0.00015538,2]
[406257084,1771665004706,568.24350225,0.00015538,2]
[406257085,1771665004731,1186.85,0.00015538,2]
[406257086,1771665004866,1186.85,0.00015538,2]
[406257087,1771665005065,1186.85,0.00015538,2]
[406257088,1771665005290,1186.85,0.00015538,2]
[406257089,1771665006910,4684.36649775,0.00015538,2]
[406257090,1771665006936,2630.73350225,0.00015538,2]
[406257091,1771665007144,7315.1,0.00015538,2]
[406257092,1771665007412,54.17649775,0.00015547,2]
[406257093,1771665007442,107.82350225,0.00015547,2]
[406257094,1771665007704,250.0,0.00015,2]
[406257095,1771665008912,507.0807751,0.00015538,2]
[406257096,1771665011586,1106.94457751,0.00015448,2]
[406257097,1771665012785,1569.49010806,0.00015448,2]
[406257121,1771665031627,-7879.51218272,0.00015548,2]
[406257122,1771665031646,-303.999998,0.00015548,2]
[406257123,1771665031657,-706.49,0.00015548,2]
[406257124,1771665031675,-233866.46426951,0.00015548,2]
[406257125,1771665031686,-911.72705474,0.00015548,2]
[406257126,1771665031701,-19914.07804099,0.00015548,2]
[406257143,1771665032567,500.0,0.00015547,2]
[406257144,1771665032597,177.30407779,0.00015547,2]
[406257145,1771665032626,500.0,0.00015547,2]
[406257146,1771665032681,500.0,0.00015547,2]
[406257147,1771665032731,500.0,0.00015547,2]
[406257148,1771665032826,500.0,0.00015547,2]
[406257149,1771665032956,500.0,0.00015547,2]
[406257150,1771665033053,500.0,0.00015547,2]
[406257151,1771665033114,500.0,0.00015547,2]
[406257152,1771665033258,224.66421145,0.00015547,2]
[406257153,1771665033319,500.0,0.00015547,2]
[406257154,1771665033423,500.0,0.00015547,2]
[406257155,1771665033557,500.0,0.00015547,2]
[406257156,1771665033600,400.7623346,0.00015547,2]
[406257157,1771665033690,500.0,0.00015547,2]
[406257160,1771665037906,-3505.7916004,0.00015548,2]
[406257161,1771665037923,-12542.72557445,0.00015548,2]
[406257162,1771665037938,-2557144.23092173,0.00015548,2]
[406257163,1771665038507,-335.96000004,0.00015548,2]
[406257164,1771665038524,-5753.47089063,0.00015548,2]
[406257166,1771665039328,249.87794917,0.00015547,2]
[406257168,1771665040194,-2003.88937486,0.00015548,2]
[406257169,1771665040205,-412.0,0.00015548,2]
[406257170,1771665040248,-1540.31369974,0.00015548,2]
[406257181,1771665040746,1086.7881698,0.00015547,2]
[406257182,1771665040777,1086.7881698,0.00015547,2]
[406257183,1771665040810,773.82508739,0.00015547,2]
[406257184,1771665040838,312.96308241,0.00015547,2]
[406257185,1771665040869,1086.7881698,0.00015547,2]
[406257186,1771665040902,1086.7881698,0.00015547,2]
[406257187,1771665040931,1086.7881698,0.00015547,2]
[406257188,1771665041024,500.0,0.00015547,2]
[406257189,1771665041051,500.0,0.00015547,2]
[406257190,1771665041078,348.04746549,0.00015547,2]
[406257191,1771665041112,192.37895213,0.00015547,2]
[406257192,1771665041142,1086.7881698,0.00015547,2]
[406257193,1771665041169,500.0,0.00015547,2]
[406257194,1771665041198,453.72236959,0.00015547,2]
[406257195,1771665041231,1086.7881698,0.00015547,2]
[406257196,1771665041268,1086.7881698,0.00015547,2]
[406257197,1771665041299,672.16911158,0.00015547,2]
[406257198,1771665041324,414.61905822,0.00015547,2]
[406257199,1771665041354,1086.7881698,0.00015547,2]
[406257200,1771665041388,1086.7881698,0.00015547,2]
[406257201,1771665041426,1086.7881698,0.00015547,2]
[406257202,1771665041457,1086.7881698,0.00015547,2]
[406257203,1771665041487,1086.7881698,0.00015547,2]
[406257204,1771665041518,1086.7881698,0.00015547,2]
[406257205,1771665041549,1086.7881698,0.00015547,2]
[406257206,1771665041580,1086.7881698,0.00015547,2]
[406257207,1771665041613,891.08558338,0.00015547,2]
[406257208,1771665041638,195.70258642,0.00015547,2]
[406257209,1771665041668,1086.7881698,0.00015547,2]
[406257210,1771665041704,1086.7881698,0.00015547,2]
[406257211,1771665041743,1086.7881698,0.00015547,2]
[406257212,1771665041772,1086.7881698,0.00015547,2]
[406257213,1771665041800,1086.7881698,0.00015547,2]
[406257214,1771665041831,1086.7881698,0.00015547,2]
[406257215,1771665041861,1086.7881698,0.00015547,2]
[406257216,1771665041891,1086.7881698,0.00015547,2]
[406257217,1771665041919,1086.7881698,0.00015547,2]
[406257218,1771665041951,23.21388538,0.00015547,2]
[406257219,1771665041975,1063.57428442,0.00015547,2]
[406257220,1771665042012,1086.7881698,0.00015547,2]
[406257221,1771665042043,1086.7881698,0.00015547,2]
[406257222,1771665042072,1086.7881698,0.00015547,2]
[406257223,1771665042103,1086.7881698,0.00015547,2]
[406257224,1771665042133,1086.7881698,0.00015547,2]
[406257225,1771665042162,1086.7881698,0.00015547,2]